fUSD/lending_fUSD_20260524
["ID","MTS","AMOUNT","RATE_DAILY","PERIOD"]
[422907863,1779606278000,-198.98506562,0.0001,2]
[422907862,1779606278000,-339.0,0.0001,2]
[422907864,1779606278000,-191.94,0.00010318,2]
[422907865,1779606278000,-339.0,0.00010716,2]
[422907866,1779606278000,-191.94,0.00010767,2]
[422907867,1779606278000,-198.98506562,0.00011216,2]
[422907868,1779606278000,-191.94,0.00011216,2]
[422907871,1779606278000,-191.94,0.00011664,2]
[422907870,1779606278000,-341.69307318,0.00011252,2]
[422907873,1779606278000,-198.98506562,0.00011716,2]
[422907869,1779606278000,-163.48,0.00011216,2]
[422907875,1779606278000,-500.0,0.00011755,2]
[422907872,1779606278000,-210.44548877,0.00011697,2]
[422907885,1779606278000,-500.0,0.00011755,2]
[422907882,1779606278000,-500.0,0.00011755,2]
[422907884,1779606278000,-500.0,0.00011755,2]
[422907883,1779606278000,-500.0,0.00011755,2]
[422907880,1779606278000,-500.0,0.00011755,2]
[422907886,1779606278000,-15.84624119,0.00011755,2]
[422907879,1779606278000,-500.0,0.00011755,2]
[422907881,1779606278000,-500.0,0.00011755,2]
[422907876,1779606278000,-500.0,0.00011755,2]
[422907874,1779606278000,-150.0,0.00011754,2]
[422907878,1779606278000,-500.0,0.00011755,2]
[422907877,1779606278000,-500.0,0.00011755,2]
[422907887,1779606342000,500.0,0.00028032,120]
[422907888,1779606429000,500.0,0.00028032,120]
[422907897,1779606525000,-500.0,0.00011755,2]
[422907890,1779606525000,-300.0,0.00011754,2]
[422907892,1779606525000,-1200.0,0.00011754,2]
[422907891,1779606525000,-300.0,0.00011754,2]
[422907894,1779606525000,-378.19470933,0.00011755,2]
[422907893,1779606525000,-150.0,0.00011754,2]
[422907896,1779606525000,-500.0,0.00011755,2]
[422907895,1779606525000,-484.15375881,0.00011755,2]
[422907898,1779606525000,-500.0,0.00011755,2]
[422907899,1779606525000,-500.0,0.00011755,2]
[422907889,1779606525000,-1200.0,0.00011754,2]
[422907902,1779606525000,-500.0,0.00011755,2]
[422907911,1779606525000,-154.30010732,0.00011755,2]
[422907900,1779606525000,-500.0,0.00011755,2]
[422907910,1779606525000,-300.0,0.00011755,2]
[422907907,1779606525000,-500.0,0.00011755,2]
[422907908,1779606525000,-500.0,0.00011755,2]
[422907909,1779606525000,-500.0,0.00011755,2]
[422907906,1779606525000,-565.16892285,0.00011755,2]
[422907904,1779606525000,-500.0,0.00011755,2]
[422907903,1779606525000,-500.0,0.00011755,2]
[422907901,1779606525000,-500.0,0.00011755,2]
[422907905,1779606525000,-500.0,0.00011755,2]
[422907912,1779606540000,1000.0,0.00028079,120]
[422907913,1779606541000,-8473.18250169,0.00011756,2]
[422907914,1779606627000,500.0,0.00028032,120]
[422907934,1779606632000,-860.5,0.00013699,2]
[422907935,1779606632000,-1111.65,0.00013772,2]
[422907942,1779606632000,-166.66,0.00014536,2]
[422907937,1779606632000,-166.66,0.00013948,2]
[422907936,1779606632000,-191.94,0.00013908,2]
[422907945,1779606632000,-210.29,0.00014682,2]
[422907939,1779606632000,-250.0,0.00014,2]
[422907938,1779606632000,-433.0,0.00013989,2]
[422907943,1779606632000,-500.0,0.00014624,2]
[422907944,1779606632000,-8450.77613235,0.00014624,2]
[422907941,1779606632000,-191.94,0.00014356,2]
[422907932,1779606632000,-206.52,0.00013699,2]
[422907940,1779606632000,-166.66,0.00014242,2]
[422907933,1779606632000,-172.1,0.00013699,2]
[422907923,1779606632000,-1111.65,0.00012242,2]
[422907929,1779606632000,-480.0,0.00013213,2]
[422907928,1779606632000,-191.94,0.0001301,2]
[422907927,1779606632000,-153.18,0.00012918,2]
[422907930,1779606632000,-191.94,0.00013459,2]
[422907926,1779606632000,-255.0,0.00012825,2]
[422907925,1779606632000,-191.94,0.00012562,2]
[422907924,1779606632000,-300.0,0.00012561,2]
[422907922,1779606632000,-191.94,0.00012113,2]
[422907921,1779606632000,-7696.18618005,0.00012013,2]
[422907920,1779606632000,-278.52586619,0.00012013,2]
[422907918,1779606632000,-1200.0,0.00012012,2]
[422907919,1779606632000,-476.06408614,0.00012013,2]
[422907917,1779606632000,-150.0,0.00011755,2]
[422907946,1779606632000,-150.0,0.00014723,2]
[422907931,1779606632000,-247.82,0.00013699,2]
[422907947,1779606632000,-720.39,0.00014723,2]
[422907956,1779606632000,-191.94,0.00015253,2]
[422907950,1779606632000,-166.66,0.00014829,2]
[422907948,1779606632000,-7271.68,0.00014766,2]
[422907976,1779606632000,-1121.64785659,0.00016922,2]
[422907979,1779606632000,-1737.79,0.00016922,5]
[422907975,1779606632000,-1075.43,0.00016922,2]
[422907977,1779606632000,-467.29685263,0.00016922,2]
[422907973,1779606632000,-4460.81301725,0.00016922,2]
[422907974,1779606632000,-316.11449079,0.00016922,2]
[422907972,1779606632000,-4137.19350132,0.00016922,2]
[422907966,1779606632000,-571.8,0.00016438,2]
[422907964,1779606632000,-191.94,0.00016151,2]
[422907962,1779606632000,-191.94,0.00015702,2]
[422907965,1779606632000,-164.92,0.00016406,2]
[422907963,1779606632000,-164.92,0.00016034,2]
[422907967,1779606632000,-191.94,0.00016599,2]
[422907978,1779606632000,-2558.68778274,0.00016922,2]
[422907960,1779606632000,-166.66,0.00015417,2]
[422907961,1779606632000,-164.92,0.00015661,2]
[422907949,1779606632000,-191.94,0.00014805,2]
[422907953,1779606632000,-2000.0,0.00015113,2]
[422907951,1779606632000,-164.92,0.00014915,2]
[422907952,1779606632000,-500.0,0.00015113,2]
[422907954,1779606632000,-166.66,0.00015123,2]
[422907955,1779606632000,-7981.96,0.00015194,2]
[422907958,1779606632000,-164.92,0.00015288,2]
[422907957,1779606632000,-736.0,0.0001527,2]
[422907959,1779606632000,-1111.65,0.00015302,2]
[422907969,1779606632000,-1114.0,0.00016657,2]
[422907970,1779606632000,-1111.65,0.00016832,2]
[422907980,1779606632000,-4170.35768475,0.00016922,2]
[422907971,1779606632000,-5862.79649868,0.00016922,2]
[422908002,1779606638000,-401.56350951,0.00017308,2]
[422908001,1779606638000,-500.0,0.00017308,2]
[422907995,1779606638000,-500.0,0.00017308,2]
[422908003,1779606638000,-169.32,0.00017309,2]
[422907999,1779606638000,-500.0,0.00017308,2]
[422908000,1779606638000,-505.8966892,0.00017308,2]
[422907997,1779606638000,-500.0,0.00017308,2]
[422908006,1779606638000,-11897.22886494,0.000178,2]
[422907998,1779606638000,-500.0,0.00017308,2]
[422907996,1779606638000,-500.0,0.00017308,2]
[422907988,1779606638000,-500.0,0.00016922,2]
[422907990,1779606638000,-503.56250299,0.00017196,2]
[422907984,1779606638000,-600.45231525,0.00016922,2]
[422907994,1779606638000,-500.0,0.00017308,2]
[422907991,1779606638000,-3415.02868287,0.00017236,2]
[422907989,1779606638000,-191.94,0.00017048,2]
[422907987,1779606638000,-999.99,0.00016922,2]
[422907986,1779606638000,-9999.99,0.00016922,2]
[422907985,1779606638000,-299.99,0.00016922,4]
[422908004,1779606638000,-178.04,0.00017529,2]
[422907993,1779606638000,-500.0,0.00017308,2]
[422908005,1779606638000,-150.0,0.0001754,2]
[422907992,1779606638000,-5035.74744948,0.00017236,2]
[422908009,1779606638000,-1350.0,0.00017871,7]
[422908007,1779606638000,-2500.0,0.00017871,2]
[422908030,1779606638000,-500.0,0.00018999,2]
[422908029,1779606638000,-500.0,0.00018999,2]
[422908024,1779606638000,-500.0,0.00018999,2]
[422908028,1779606638000,-500.0,0.00018999,2]
[422908025,1779606638000,-500.0,0.00018999,2]
[422908026,1779606638000,-500.0,0.00018999,2]
[422908021,1779606638000,-571.8,0.0001841,2]
[422908023,1779606638000,-285.68,0.0001872,2]
[422908022,1779606638000,-358.39,0.00018659,2]
[422908020,1779606638000,-1111.65,0.00018363,2]
[422908027,1779606638000,-500.0,0.00018999,2]
[422908010,1779606638000,-28229.42923773,0.000179,2]
[422908013,1779606638000,-28229.42923773,0.000179,2]
[422908012,1779606638000,-28229.42923773,0.000179,2]
[422908019,1779606638000,-49503.74,0.00018356,2]
[422908017,1779606638000,-150.0,0.00018225,2]
[422908016,1779606638000,-200.0,0.00018073,2]
[422908008,1779606638000,-650.0,0.00017871,2]
[422908014,1779606638000,-500.0,0.00017913,2]
[422908018,1779606638000,-500.0,0.00018355,2]
[422908011,1779606638000,-28229.42923773,0.000179,2]
[422908015,1779606638000,-2000.0,0.00017913,2]
[422908123,1779606639000,-335.0,0.0002,2]
[422908125,1779606639000,-340.0,0.0002,2]
[422908121,1779606639000,-155.0,0.0002,2]
[422908113,1779606639000,-8450.77613235,0.00019847,2]
[422908110,1779606639000,-500.0,0.00019689,2]
[422908099,1779606639000,-432788.2148,0.00019665,2]
[422908105,1779606639000,-500.0,0.00019689,2]
[422908101,1779606639000,-500.0,0.00019689,2]
[422908103,1779606639000,-500.0,0.00019689,2]
[422908127,1779606639000,-203.0,0.0002,2]
[422908107,1779606639000,-500.0,0.00019689,2]
[422908111,1779606639000,-11897.22886493,0.00019768,2]
[422908115,1779606639000,-200.0,0.000199,7]
[422908152,1779606639000,-151.0,0.00020378,2]
[422908119,1779606639000,-673.0,0.0002,2]
[422908129,1779606639000,-154.0,0.0002,2]
[422908131,1779606639000,-487.0,0.00020145,2]
[422908133,1779606639000,-487.0,0.00020145,2]
[422908138,1779606639000,-207.606546,0.00020253,2]
[422908135,1779606639000,-691.15,0.00020145,2]
[422908140,1779606639000,-151.0,0.00020378,2]
[422908158,1779606639000,-151.0,0.00020378,2]
[422908142,1779606639000,-151.0,0.00020378,2]
[422908094,1779606639000,-500.0,0.00019664,2]
[422908150,1779606639000,-200.0,0.00020378,2]
[422908156,1779606639000,-1734.62772924,0.00020378,2]
[422908154,1779606639000,-500.0,0.00020378,2]
[422908117,1779606639000,-193.0,0.0002,2]
[422908096,1779606639000,-1961.0,0.00019665,5]
[422908073,1779606639000,-500.0,0.00019664,2]
[422908088,1779606639000,-500.0,0.00019664,2]
[422908148,1779606639000,-151.0,0.00020378,2]
[422908033,1779606639000,-54671.0,0.00019,7]
[422908031,1779606639000,-289.64490691,0.00018999,2]
[422908035,1779606639000,-500.0,0.00019029,2]
[422908038,1779606639000,-507.94558638,0.00019029,2]
[422908047,1779606639000,-708.24,0.00019029,2]
[422908049,1779606639000,-3081.4,0.00019029,2]
[422908040,1779606639000,-500.0,0.00019029,2]
[422908044,1779606639000,-504.9957341,0.00019029,2]
[422908042,1779606639000,-500.0,0.00019029,2]
[422908055,1779606639000,-9999.99,0.00019339,2]
[422908057,1779606639000,-151.0,0.00019662,2]
[422908059,1779606639000,-202.18508596,0.00019664,5]
[422908092,1779606639000,-3081.4,0.00019664,2]
[422908051,1779606639000,-500.0,0.00019029,2]
[422908061,1779606639000,-1358.54243293,0.00019664,5]
[422908077,1779606639000,-500.0,0.00019664,2]
[422908079,1779606639000,-500.0,0.00019664,2]
[422908075,1779606639000,-508.87111765,0.00019664,2]
[422908063,1779606639000,-500.0,0.00019664,2]
[422908067,1779606639000,-500.0,0.00019664,2]
[422908066,1779606639000,-500.0,0.00019664,2]
[422908069,1779606639000,-500.0,0.00019664,2]
[422908071,1779606639000,-457.9767215,0.00019664,2]
[422908081,1779606639000,-500.0,0.00019664,2]
[422908084,1779606639000,-500.0,0.00019664,2]
[422908086,1779606639000,-708.24,0.00019664,2]
[422908090,1779606639000,-529.03033071,0.00019664,3]
[422908053,1779606639000,-2500.0,0.00019203,2]
[422908144,1779606639000,-151.0,0.00020378,2]
[422908188,1779606639000,-151.0,0.00020378,2]
[422908162,1779606639000,-151.0,0.00020378,2]
[422908222,1779606639000,-238.60871557,0.00020378,2]
[422908219,1779606639000,-500.0,0.00020378,2]
[422908227,1779606639000,-151.0,0.00020378,2]
[422908224,1779606639000,-151.0,0.00020378,2]
[422908229,1779606639000,-151.0,0.00020378,2]
[422908233,1779606639000,-151.0,0.00020378,2]
[422908231,1779606639000,-500.0,0.00020378,2]
[422908245,1779606639000,-151.0,0.00020378,2]
[422908235,1779606639000,-500.0,0.00020378,2]
[422908246,1779606639000,-286.14099624,0.00020378,2]
[422908234,1779606639000,-256.59241585,0.00020378,2]
[422908236,1779606639000,-151.0,0.00020378,2]
[422908242,1779606639000,-275.93152964,0.00020378,2]
[422908228,1779606639000,-247.43723804,0.00020378,2]
[422908243,1779606639000,-521.20369368,0.00020378,2]
[422908241,1779606639000,-151.0,0.00020378,2]
[422908237,1779606639000,-151.0,0.00020378,2]
[422908239,1779606639000,-500.0,0.00020378,2]
[422908244,1779606639000,-151.0,0.00020378,2]
[422908240,1779606639000,-151.0,0.00020378,2]
[422908247,1779606639000,-151.0,0.00020378,2]
[422908248,1779606639000,-151.0,0.00020378,2]
[422908146,1779606639000,-151.0,0.00020378,2]
[422908253,1779606639000,-208.8304494,0.00020387,2]
[422908249,1779606639000,-296.7282131,0.00020378,2]
[422908250,1779606639000,-435.02238219,0.00020378,2]
[422908254,1779606639000,-2018.28304032,0.000205,2]
[422908251,1779606639000,-213.0,0.00020378,2]
[422908238,1779606639000,-266.08633524,0.00020378,2]
[422908226,1779606639000,-500.0,0.00020378,2]
[422908252,1779606639000,-571.8,0.00020381,2]
[422908215,1779606639000,-230.09519341,0.00020378,2]
[422908221,1779606639000,-151.0,0.00020378,2]
[422908164,1779606639000,-151.0,0.00020378,2]
[422908160,1779606639000,-500.0,0.00020378,2]
[422908166,1779606639000,-500.0,0.00020378,2]
[422908172,1779606639000,-151.0,0.00020378,2]
[422908176,1779606639000,-500.0,0.00020378,2]
[422908184,1779606639000,-500.0,0.00020378,2]
[422908174,1779606639000,-151.0,0.00020378,2]
[422908182,1779606639000,-151.0,0.00020378,2]
[422908178,1779606639000,-191.87295522,0.00020378,2]
[422908180,1779606639000,-151.0,0.00020378,2]
[422908186,1779606639000,-198.97225456,0.00020378,2]
[422908190,1779606639000,-151.0,0.00020378,2]
[422908192,1779606639000,-500.0,0.00020378,2]
[422908169,1779606639000,-185.02695778,0.00020378,2]
[422908194,1779606639000,-206.33422798,0.00020378,2]
[422908201,1779606639000,-500.0,0.00020378,2]
[422908213,1779606639000,-151.0,0.00020378,2]
[422908208,1779606639000,-151.0,0.00020378,2]
[422908210,1779606639000,-151.0,0.00020378,2]
[422908211,1779606639000,-500.0,0.00020378,2]
[422908205,1779606639000,-500.0,0.00020378,2]
[422908206,1779606639000,-221.88543241,0.00020378,2]
[422908196,1779606639000,-151.0,0.00020378,2]
[422908204,1779606639000,-151.0,0.00020378,2]
[422908202,1779606639000,-213.96859442,0.00020378,2]
[422908217,1779606639000,-151.0,0.00020378,2]
[422908199,1779606639000,-151.0,0.00020378,2]
[422908203,1779606639000,-151.0,0.00020378,2]
[422908295,1779606640000,-500.0,0.00021287,2]
[422908280,1779606640000,-1798.80895522,0.00020926,2]
[422908282,1779606640000,-205.82,0.00020978,2]
[422908292,1779606640000,-152.0,0.00021225,2]
[422908281,1779606640000,-294.02,0.00020978,2]
[422908288,1779606640000,-203.0,0.00021,2]
[422908286,1779606640000,-335.0,0.00021,2]
[422908287,1779606640000,-340.0,0.00021,2]
[422908290,1779606640000,-493.56461531,0.000211,2]
[422908289,1779606640000,-2018.28304032,0.000211,2]
[422908294,1779606640000,-531.91,0.00021273,2]
[422908300,1779606640000,-448.57678597,0.000213,2]
[422908285,1779606640000,-155.0,0.00021,2]
[422908291,1779606640000,-167.04307617,0.000211,2]
[422908296,1779606640000,-2018.28304032,0.000213,2]
[422908299,1779606640000,-167.04307617,0.000213,2]
[422908297,1779606640000,-493.56461531,0.000213,2]
[422908303,1779606640000,-191.76709777,0.00021389,2]
[422908307,1779606640000,-500.0,0.00021389,2]
[422908302,1779606640000,-171.582,0.00021318,2]
[422908279,1779606640000,-200.0,0.00020926,2]
[422908304,1779606640000,-534.11953558,0.00021389,2]
[422908293,1779606640000,-1246.66,0.00021273,2]
[422908284,1779606640000,-673.0,0.00021,2]
[422908265,1779606640000,-708.24,0.00020666,2]
[422908275,1779606640000,-493.56461531,0.000209,2]
[422908305,1779606640000,-500.0,0.00021389,2]
[422908258,1779606640000,-150.0,0.0002058,2]
[422908259,1779606640000,-150.0,0.0002058,2]
[422908255,1779606640000,-493.56461531,0.000205,2]
[422908257,1779606640000,-215.34753388,0.00020505,2]
[422908256,1779606640000,-167.04307617,0.000205,2]
[422908261,1779606640000,-150.0,0.0002058,2]
[422908260,1779606640000,-150.0,0.0002058,2]
[422908262,1779606640000,-150.0,0.0002058,2]
[422908264,1779606640000,-500.0,0.00020666,2]
[422908263,1779606640000,-500.0,0.00020666,2]
[422908267,1779606640000,-500.0,0.00020666,2]
[422908266,1779606640000,-3081.4,0.00020666,2]
[422908269,1779606640000,-2018.28304032,0.000207,2]
[422908270,1779606640000,-493.56461531,0.000207,2]
[422908268,1779606640000,-500.0,0.00020667,2]
[422908272,1779606640000,-500.0,0.00020713,2]
[422908271,1779606640000,-167.04307617,0.000207,2]
[422908273,1779606640000,-2000.0,0.00020713,2]
[422908274,1779606640000,-2018.28304032,0.000209,2]
[422908278,1779606640000,-255.29299349,0.00020926,2]
[422908277,1779606640000,-400.0,0.000209,7]
[422908276,1779606640000,-167.04307617,0.000209,2]
[422908283,1779606640000,-193.0,0.00021,2]
[422908301,1779606640000,-2110.624,0.00021318,2]
[422908314,1779606640000,-500.0,0.00021389,2]
[422908310,1779606640000,-500.0,0.00021389,2]
[422908337,1779606640000,-207.091387,0.0002139,2]
[422908338,1779606640000,-207.091387,0.0002139,2]
[422908334,1779606640000,-2403.583912,0.0002139,2]
[422908336,1779606640000,-207.091387,0.0002139,2]
[422908341,1779606640000,-317.600489,0.0002139,2]
[422908351,1779606640000,-449.164108,0.0002139,2]
[422908342,1779606640000,-317.600489,0.0002139,2]
[422908343,1779606640000,-2156.817343,0.0002139,2]
[422908352,1779606640000,-449.164108,0.0002139,2]
[422908346,1779606640000,-2156.817343,0.0002139,2]
[422908344,1779606640000,-2156.817343,0.0002139,2]
[422908340,1779606640000,-317.600489,0.0002139,2]
[422908350,1779606640000,-151.0,0.0002139,2]
[422908348,1779606640000,-151.0,0.0002139,2]
[422908347,1779606640000,-151.0,0.0002139,2]
[422908349,1779606640000,-151.0,0.0002139,2]
[422908353,1779606640000,-449.164108,0.0002139,2]
[422908356,1779606640000,-1163.063031,0.0002139,2]
[422908354,1779606640000,-449.164108,0.0002139,2]
[422908359,1779606640000,-1163.063031,0.0002139,2]
[422908358,1779606640000,-151.0,0.0002139,2]
[422908355,1779606640000,-1163.063031,0.0002139,2]
[422908306,1779606640000,-500.0,0.00021389,2]
[422908332,1779606640000,-2403.583912,0.0002139,2]
[422908339,1779606640000,-317.600489,0.0002139,2]
[422908345,1779606640000,-2156.817343,0.0002139,2]
[422908333,1779606640000,-1074.357748,0.0002139,2]
[422908309,1779606640000,-500.0,0.00021389,2]
[422908331,1779606640000,-1074.357748,0.0002139,2]
[422908308,1779606640000,-500.0,0.00021389,2]
[422908311,1779606640000,-500.0,0.00021389,2]
[422908312,1779606640000,-708.24,0.00021389,2]
[422908313,1779606640000,-3081.4,0.00021389,2]
[422908316,1779606640000,-1776.684128,0.0002139,2]
[422908315,1779606640000,-246652.352763,0.0002139,2]
[422908318,1779606640000,-151.0,0.0002139,2]
[422908319,1779606640000,-338.828756,0.0002139,2]
[422908322,1779606640000,-338.828756,0.0002139,2]
[422908317,1779606640000,-2593.1197155,0.0002139,2]
[422908357,1779606640000,-1163.063031,0.0002139,2]
[422908320,1779606640000,-338.828756,0.0002139,2]
[422908323,1779606640000,-278.721501,0.0002139,2]
[422908327,1779606640000,-1074.357748,0.0002139,2]
[422908321,1779606640000,-338.828756,0.0002139,2]
[422908326,1779606640000,-278.721501,0.0002139,2]
[422908325,1779606640000,-278.721501,0.0002139,2]
[422908324,1779606640000,-278.721501,0.0002139,2]
[422908328,1779606640000,-2403.583912,0.0002139,2]
[422908335,1779606640000,-207.091387,0.0002139,2]
[422908329,1779606640000,-1074.357748,0.0002139,2]
[422908330,1779606640000,-2403.583912,0.0002139,2]
[422908400,1779606641000,-516.31,0.00021399,2]
[422908397,1779606641000,-500.0,0.00021399,2]
[422908399,1779606641000,-516.31,0.00021399,2]
[422908398,1779606641000,-500.0,0.00021399,2]
[422908396,1779606641000,-500.0,0.00021399,2]
[422908391,1779606641000,-500.0,0.00021399,2]
[422908393,1779606641000,-500.0,0.00021399,2]
[422908394,1779606641000,-500.0,0.00021399,2]
[422908401,1779606641000,-516.31,0.00021399,2]
[422908402,1779606641000,-516.31,0.00021399,2]
[422908403,1779606641000,-516.31,0.00021399,2]
[422908395,1779606641000,-500.0,0.00021399,2]
[422908409,1779606641000,-500.0,0.00021399,2]
[422908417,1779606641000,-500.0,0.00021399,2]
[422908406,1779606641000,-516.31,0.00021399,2]
[422908408,1779606641000,-516.31,0.00021399,2]
[422908405,1779606641000,-516.31,0.00021399,2]
[422908410,1779606641000,-500.0,0.00021399,2]
[422908404,1779606641000,-516.31,0.00021399,2]
[422908415,1779606641000,-500.0,0.00021399,2]
[422908412,1779606641000,-500.0,0.00021399,2]
[422908414,1779606641000,-500.0,0.00021399,2]
[422908413,1779606641000,-500.0,0.00021399,2]
[422908418,1779606641000,-500.0,0.00021399,2]
[422908419,1779606641000,-500.0,0.00021399,2]
[422908392,1779606641000,-500.0,0.00021399,2]
[422908407,1779606641000,-516.31,0.00021399,2]
[422908383,1779606641000,-500.0,0.00021399,2]
[422908360,1779606641000,-151.0,0.0002139,2]
[422908389,1779606641000,-500.0,0.00021399,2]
[422908362,1779606641000,-151.0,0.0002139,2]
[422908363,1779606641000,-1208.650807,0.0002139,2]
[422908361,1779606641000,-151.0,0.0002139,2]
[422908364,1779606641000,-1208.650807,0.0002139,2]
[422908421,1779606641000,-500.0,0.00021399,2]
[422908366,1779606641000,-1208.650807,0.0002139,2]
[422908377,1779606641000,-151.0,0.00021397,2]
[422908376,1779606641000,-151.0,0.00021397,2]
[422908367,1779606641000,-151.0,0.0002139,2]
[422908374,1779606641000,-294.524839,0.0002139,2]
[422908368,1779606641000,-151.0,0.0002139,2]
[422908365,1779606641000,-1208.650807,0.0002139,2]
[422908369,1779606641000,-151.0,0.0002139,2]
[422908385,1779606641000,-500.0,0.00021399,2]
[422908370,1779606641000,-151.0,0.0002139,2]
[422908375,1779606641000,-254.00184555,0.00021394,2]
[422908373,1779606641000,-294.524839,0.0002139,2]
[422908372,1779606641000,-294.524839,0.0002139,2]
[422908378,1779606641000,-500.0,0.00021398,2]
[422908380,1779606641000,-500.0,0.00021399,2]
[422908381,1779606641000,-500.0,0.00021399,2]
[422908379,1779606641000,-500.0,0.00021399,2]
[422908386,1779606641000,-500.0,0.00021399,2]
[422908388,1779606641000,-500.0,0.00021399,2]
[422908387,1779606641000,-500.0,0.00021399,2]
[422908382,1779606641000,-500.0,0.00021399,2]
[422908390,1779606641000,-500.0,0.00021399,2]
[422908384,1779606641000,-500.0,0.00021399,2]
[422908371,1779606641000,-294.524839,0.0002139,2]
[422908422,1779606641000,-500.0,0.00021399,2]
[422908416,1779606641000,-500.0,0.00021399,2]
[422908424,1779606641000,-500.0,0.00021399,2]
[422908453,1779606641000,-151.0,0.00021399,2]
[422908456,1779606641000,-151.0,0.00021399,2]
[422908455,1779606641000,-151.0,0.00021399,2]
[422908462,1779606641000,-176.18954424,0.00021429,2]
[422908459,1779606641000,-204.89923747,0.000214,2]
[422908457,1779606641000,-509.01199367,0.00021399,2]
[422908460,1779606641000,-506.69695703,0.00021416,7]
[422908463,1779606641000,-3469.25545849,0.00021429,2]
[422908458,1779606641000,-151.0,0.000214,2]
[422908461,1779606641000,-176.51944045,0.00021429,2]
[422908467,1779606641000,-502.07339431,0.00021429,2]
[422908477,1779606641000,-583.43528699,0.00021429,2]
[422908466,1779606641000,-1191.11104074,0.00021429,2]
[422908464,1779606641000,-174.70920857,0.00021429,2]
[422908470,1779606641000,-7965.41053268,0.00021429,2]
[422908476,1779606641000,-347.50429698,0.00021429,2]
[422908471,1779606641000,-155.58479665,0.00021429,2]
[422908468,1779606641000,-286.40081671,0.00021429,2]
[422908472,1779606641000,-176.96760267,0.00021429,2]
[422908473,1779606641000,-174.61919141,0.00021429,2]
[422908475,1779606641000,-200.0,0.00021429,2]
[422908474,1779606641000,-601.3376128,0.00021429,2]
[422908480,1779606641000,-1865.36488656,0.00021474,2]
[422908479,1779606641000,-200.0,0.00021474,2]
[422908482,1779606641000,-2018.28304032,0.000215,2]
[422908481,1779606641000,-151.0,0.00021484,2]
[422908483,1779606641000,-151.0,0.00021539,2]
[422908428,1779606641000,-509.90076802,0.00021399,2]
[422908469,1779606641000,-151.0,0.00021429,2]
[422908465,1779606641000,-578.20924308,0.00021429,2]
[422908478,1779606641000,-166.04094743,0.00021443,2]
[422908450,1779606641000,-500.0,0.00021399,2]
[422908454,1779606641000,-151.0,0.00021399,2]
[422908420,1779606641000,-511.83847665,0.00021399,2]
[422908426,1779606641000,-500.0,0.00021399,2]
[422908427,1779606641000,-500.0,0.00021399,2]
[422908425,1779606641000,-500.0,0.00021399,2]
[422908429,1779606641000,-500.0,0.00021399,2]
[422908431,1779606641000,-500.0,0.00021399,2]
[422908430,1779606641000,-500.0,0.00021399,2]
[422908432,1779606641000,-500.0,0.00021399,2]
[422908435,1779606641000,-594.6,0.00021399,2]
[422908434,1779606641000,-594.6,0.00021399,2]
[422908438,1779606641000,-594.6,0.00021399,2]
[422908440,1779606641000,-594.6,0.00021399,2]
[422908436,1779606641000,-594.6,0.00021399,2]
[422908423,1779606641000,-500.0,0.00021399,2]